fUST/lending_fUST_20251006
["ID","MTS","AMOUNT","RATE_DAILY","PERIOD"]
[389558893,1759713055820,-500.0,0.00017733,2]
[389558894,1759713055829,-500.0,0.00017733,2]
[389558896,1759713055838,-500.0,0.00017733,2]
[389558898,1759713055848,-500.0,0.00017733,2]
[389558900,1759713055857,-500.0,0.00017749,2]
[389558902,1759713055867,-500.0,0.00017762,2]
[389558904,1759713055876,-379.008907,0.00017768,2]
[389558906,1759713055886,-189.5044535,0.00017768,2]
[389558908,1759713055895,-189.5044535,0.00017768,2]
[389558910,1759713055904,-513.27823922,0.00017785,2]
[389558912,1759713055913,-500.0,0.00017785,2]
[389558914,1759713055922,-151.0,0.00017787,2]
[389558916,1759713055931,-151.0,0.00017787,2]
[389558918,1759713055940,-2244.06,0.00017798,3]
[389558919,1759713055949,-1122.04,0.00017798,3]
[389558921,1759713055958,-561.02,0.00017798,3]
[389558923,1759713055967,-4650.706252,0.00017801,2]
[389558925,1759713055976,-500.0,0.00017803,2]
[389558927,1759713055985,-153.72597296,0.00017808,2]
[389558928,1759713055995,-433.66801638,0.00017808,2]
[389558929,1759713056004,-211.7293526,0.00017808,2]
[389558930,1759713056013,-1397.0,0.00017808,2]
[389558931,1759713056022,-500.0,0.00017808,2]
[389558932,1759713056031,-500.0,0.00017808,2]
[389558933,1759713056040,-943.41,0.00017808,2]
[389558934,1759713056050,-527.53,0.00017808,2]
[389558935,1759713056059,-151.0,0.00017808,2]
[389558936,1759713056068,-151.0,0.00017808,2]
[389558937,1759713056081,-151.0,0.00017808,2]
[389558938,1759713056090,-151.0,0.00017808,2]
[389558939,1759713056099,-151.0,0.00017808,2]
[389558940,1759713056108,-268.435375,0.00017808,2]
[389558941,1759713056119,-151.0,0.00017808,2]
[389558945,1759713056264,-500.0,0.00017808,2]
[389558947,1759713056274,-151.0,0.00017808,2]
[389558949,1759713056283,-500.0,0.00017808,2]
[389558951,1759713056292,-151.0,0.00017808,2]
[389558953,1759713056301,-151.0,0.00017808,2]
[389558955,1759713056310,-159.496231,0.00017808,2]
[389558957,1759713056319,-500.0,0.00017808,2]
[389558959,1759713056328,-723.41,0.00017808,2]
[389558961,1759713056337,-606.57,0.00017808,2]
[389558963,1759713056346,-166.414755,0.00017808,2]
[389558965,1759713056354,-151.0,0.00017808,2]
[389558967,1759713056363,-151.0,0.00017808,2]
[389558969,1759713056372,-875.15,0.00017808,2]
[389558971,1759713056381,-500.0,0.00017808,2]
[389558973,1759713056390,-151.0,0.00017808,2]
[389558975,1759713056399,-151.0,0.00017808,2]
[389558977,1759713056408,-500.0,0.00017808,2]
[389558979,1759713056417,-776.19,0.00017808,2]
[389558981,1759713056426,-151.0,0.00017808,2]
[389558983,1759713056435,-813.27,0.00017808,2]
[389558985,1759713056444,-152.999109,0.00017808,2]
[389558986,1759713056453,-500.0,0.00017808,2]
[389558988,1759713056462,-500.0,0.00017808,2]
[389558990,1759713056471,-500.0,0.00017808,2]
[389558992,1759713056480,-500.0,0.00017808,2]
[389558994,1759713056490,-151.0,0.00017808,2]
[389558996,1759713056499,-500.0,0.00017808,2]
[389558998,1759713056508,-654.99,0.00017808,2]
[389559000,1759713056517,-151.0,0.00017808,2]
[389559002,1759713056527,-151.0,0.00017808,2]
[389559004,1759713056536,-151.0,0.00017808,2]
[389559006,1759713056545,-151.0,0.00017808,2]
[389559008,1759713056555,-535.6,0.00017808,2]
[389559010,1759713056564,-500.0,0.00017808,2]
[389559012,1759713056573,-500.0,0.00017808,2]
[389559014,1759713056582,-887.22,0.00017808,2]
[389559016,1759713056592,-151.0,0.00017808,2]
[389559018,1759713056601,-500.0,0.00017808,2]
[389559020,1759713056614,-546.8,0.00017808,2]
[389559022,1759713056623,-151.0,0.00017808,2]
[389559024,1759713056632,-151.0,0.00017808,2]
[389559026,1759713056640,-765.64,0.00017808,2]
[389559028,1759713056649,-500.0,0.00017808,2]
[389559030,1759713056659,-587.59,0.00017808,2]
[389559032,1759713056668,-1102.28,0.00017808,2]
[389559034,1759713056676,-500.0,0.00017808,2]
[389559036,1759713056685,-517.45,0.00017808,2]
[389559038,1759713056694,-151.0,0.00017808,2]
[389559040,1759713056704,-151.0,0.00017808,2]
[389559042,1759713056714,-500.27,0.00017808,2]
[389559044,1759713056723,-151.0,0.00017808,2]
[389559046,1759713056732,-151.0,0.00017808,2]
[389559048,1759713056742,-151.0,0.00017808,2]
[389559049,1759713056750,-500.0,0.00017808,2]
[389559052,1759713056762,-1384.45,0.00017808,2]
[389559053,1759713056771,-151.0,0.00017808,2]
[389559055,1759713056780,-151.0,0.00017808,2]
[389559057,1759713056789,-151.0,0.00017808,2]
[389559059,1759713056802,-500.0,0.00017808,2]
[389559061,1759713056811,-500.0,0.00017808,2]
[389559063,1759713056820,-500.0,0.00017808,2]
[389559065,1759713056830,-500.0,0.00017808,2]
[389559067,1759713056839,-500.0,0.00017808,2]
[389559069,1759713056848,-541.64,0.00017808,2]
[389559071,1759713056857,-500.0,0.00017808,2]
[389559073,1759713056867,-500.0,0.00017808,2]
[389559075,1759713056877,-151.0,0.00017808,2]
[389559077,1759713056886,-151.0,0.00017808,2]
[389559079,1759713056897,-695.25,0.00017808,2]
[389559081,1759713056906,-500.0,0.00017808,2]
[389559083,1759713056915,-1387.11,0.00017808,2]
[389559085,1759713056925,-151.0,0.00017808,2]
[389559087,1759713056934,-984.94,0.00017808,2]
[389559089,1759713056943,-1508.02,0.00017808,2]
[389559091,1759713056952,-626.5,0.00017808,2]
[389559093,1759713056961,-846.36,0.00017808,2]
[389559095,1759713056970,-3829.66,0.00017808,2]
[389559097,1759713056979,-500.0,0.00017808,2]
[389559099,1759713056988,-838.38,0.00017808,2]
[389559101,1759713056998,-500.0,0.00017808,2]
[389559103,1759713057008,-7271.63,0.00017808,2]
[389559105,1759713057018,-868.51,0.00017808,2]
[389559107,1759713057028,-151.0,0.00017808,2]
[389559109,1759713057037,-585.61415,0.00017808,2]
[389559111,1759713057047,-500.0,0.00017808,2]
[389559114,1759713057057,-585.61415,0.00017808,2]
[389559116,1759713057066,-585.61415,0.00017808,2]
[389559117,1759713057079,-585.61415,0.00017808,2]
[389559120,1759713057088,-623.23,0.00017808,2]
[389559122,1759713057098,-10604.76,0.00017808,2]
[389559123,1759713057107,-1306.95,0.00017808,2]
[389559125,1759713057119,-169.410077,0.00017808,2]
[389559127,1759713057128,-1022.02,0.00017808,2]
[389559129,1759713057137,-169.410077,0.00017808,2]
[389559131,1759713057147,-500.0,0.00017808,2]
[389559133,1759713057158,-151.0,0.00017808,2]
[389559135,1759713057168,-169.410077,0.00017808,2]
[389559137,1759713057177,-349.929601,0.00017808,2]
[389559139,1759713057186,-151.0,0.00017808,2]
[389559141,1759713057195,-1668.52,0.00017808,2]
[389559143,1759713057204,-349.929601,0.00017808,2]
[389559145,1759713057213,-169.410081,0.00017808,2]
[389559147,1759713057222,-2980.25,0.00017808,2]
[389559149,1759713057233,-151.0,0.00017808,2]
[389559151,1759713057243,-349.929601,0.00017808,2]
[389559153,1759713057252,-151.0,0.00017808,2]
[389559155,1759713057262,-349.92960278,0.00017808,2]
[389559157,1759713057271,-151.0,0.00017808,2]
[389559159,1759713057280,-1326.38,0.00017808,2]
[389559161,1759713057288,-1794.78,0.00017808,2]
[389559163,1759713057297,-500.0,0.00017808,2]
[389559165,1759713057306,-1089.97,0.00017808,2]
[389559167,1759713057315,-500.0,0.00017808,2]
[389559169,1759713057324,-3319.91,0.00017808,2]
[389559171,1759713057334,-637.43,0.00017808,2]
[389559173,1759713057342,-626.33,0.00017808,2]
[389559175,1759713057351,-500.0,0.00017808,2]
[389559177,1759713057361,-3422.7,0.00017808,2]
[389559179,1759713057370,-1166.32,0.00017808,2]
[389559181,1759713057379,-500.0,0.00017808,2]
[389559183,1759713057389,-4273.81,0.00017808,2]
[389559185,1759713057399,-151.0,0.00017808,2]
[389559187,1759713057408,-151.0,0.00017808,2]
[389559189,1759713057417,-151.0,0.00017808,2]
[389559191,1759713057427,-327.726662,0.00017808,2]
[389559193,1759713057436,-500.0,0.00017808,2]
[389559195,1759713057445,-151.0,0.00017808,2]
[389559197,1759713057454,-327.726662,0.00017808,2]
[389559199,1759713057463,-292.191872,0.00017808,2]
[389559201,1759713057473,-500.0,0.00017808,2]
[389559203,1759713057482,-327.726662,0.00017808,2]
[389559205,1759713057491,-327.726669,0.00017808,2]
[389559207,1759713057500,-1431.63,0.00017808,2]
[389559209,1759713057510,-500.0,0.00017808,2]
[389559211,1759713057519,-1125.66,0.00017808,2]
[389559213,1759713057528,-500.0,0.00017808,2]
[389559215,1759713057537,-151.0,0.00017808,2]
[389559217,1759713057547,-151.0,0.00017808,2]
[389559219,1759713057556,-151.0,0.00017808,2]
[389559221,1759713057565,-985.35,0.00017808,2]
[389559223,1759713057574,-500.0,0.00017808,2]
[389559225,1759713057583,-332.506667,0.00017808,2]
[389559227,1759713057592,-1514.11,0.00017808,2]
[389559229,1759713057602,-999.19,0.00017808,2]
[389559231,1759713057611,-151.0,0.00017808,2]
[389559233,1759713057621,-332.506667,0.00017808,2]
[389559235,1759713057630,-500.0,0.00017808,2]
[389559237,1759713057639,-280.020318,0.00017808,2]
[389559239,1759713057649,-151.0,0.00017808,2]
[389559241,1759713057658,-332.506667,0.00017808,2]
[389559243,1759713057668,-280.020318,0.00017808,2]
[389559245,1759713057677,-151.0,0.00017808,2]
[389559247,1759713057687,-723.33,0.00017808,2]
[389559249,1759713057696,-151.0,0.00017808,2]
[389559251,1759713057708,-332.506663,0.00017808,2]
[389559253,1759713057717,-280.020318,0.00017808,2]
[389559255,1759713057727,-2023.81,0.00017808,2]
[389559257,1759713057736,-151.0,0.00017808,2]
[389559259,1759713057746,-280.020318,0.00017808,2]
[389559262,1759713057757,-151.0,0.00017808,2]
[389559264,1759713057767,-500.0,0.00017808,2]
[389559266,1759713057778,-151.0,0.00017808,2]
[389559267,1759713057789,-500.0,0.00017808,2]
[389559270,1759713057799,-151.0,0.00017808,2]
[389559271,1759713057812,-906.92,0.00017808,2]
[389559273,1759713057822,-500.0,0.00017808,2]
[389559276,1759713057834,-151.0,0.00017808,2]
[389559277,1759713057843,-500.0,0.00017808,2]
[389559279,1759713057853,-151.0,0.00017808,2]
[389559281,1759713057863,-500.0,0.00017808,2]
[389559283,1759713057872,-4035.12,0.00017808,2]
[389559285,1759713057882,-151.0,0.00017808,2]
[389559287,1759713057892,-500.0,0.00017808,2]
[389559289,1759713057901,-295.146811,0.00017808,2]
[389559291,1759713057911,-295.146811,0.00017808,2]
[389559293,1759713057920,-500.0,0.00017808,2]
[389559295,1759713057929,-295.146811,0.00017808,2]
[389559297,1759713057939,-295.146811,0.00017808,2]
[389559299,1759713057948,-500.0,0.00017808,2]
[389559301,1759713057958,-500.0,0.00017808,2]
[389559303,1759713057967,-500.0,0.00017808,2]
[389559305,1759713057976,-581.71,0.00017808,2]
[389559307,1759713057986,-373.33773106,0.00017808,2]
[389559309,1759713057995,-645.97,0.00017808,2]
[389559311,1759713058005,-151.0,0.00017808,2]
[389559313,1759713058015,-423.01133758,0.00017808,2]
[389559315,1759713058025,-151.0,0.00017808,2]
[389559317,1759713058035,-151.0,0.00017808,2]
[389559319,1759713058045,-271.671131,0.00017808,2]
[389559321,1759713058054,-1391.1,0.00017808,2]
[389559323,1759713058064,-500.0,0.00017808,2]
[389559326,1759713058077,-271.671131,0.00017808,2]
[389559327,1759713058089,-500.0,0.00017808,2]
[389559330,1759713058100,-151.0,0.00017808,2]
[389559332,1759713058110,-271.671131,0.00017808,2]
[389559334,1759713058119,-1166.83,0.00017808,2]
[389559336,1759713058128,-151.0,0.00017808,2]
[389559338,1759713058138,-5738.254316,0.00017808,2]
[389559340,1759713058147,-463.094162,0.00017808,2]
[389559342,1759713058157,-271.671131,0.00017808,2]
[389559344,1759713058168,-5738.254316,0.00017808,2]
[389559346,1759713058177,-463.094162,0.00017808,2]
[389559348,1759713058186,-231.759741,0.00017808,2]
[389559349,1759713058195,-151.0,0.00017808,2]
[389559351,1759713058205,-557.695997,0.00017808,2]
[389559353,1759713058216,-5738.254316,0.00017808,2]
[389559355,1759713058225,-463.094162,0.00017808,2]
[389559357,1759713058234,-231.759741,0.00017808,2]
[389559359,1759713058243,-151.0,0.00017808,2]
[389559361,1759713058252,-557.695997,0.00017808,2]
[389559363,1759713058261,-463.094162,0.00017808,2]
[389559365,1759713058270,-231.759741,0.00017808,2]
[389559367,1759713058279,-557.695997,0.00017808,2]
[389559369,1759713058288,-638.55,0.00017808,2]
[389559371,1759713058298,-5738.254316,0.00017808,2]
[389559373,1759713058307,-9316.12,0.00017808,2]
[389559375,1759713058318,-231.759741,0.00017808,2]
[389559377,1759713058327,-557.695997,0.00017808,2]
[389559379,1759713058336,-1139.0,0.00017808,2]
[389559381,1759713058345,-3120.92,0.00017808,2]
[389559383,1759713058355,-500.0,0.00017808,2]
[389559385,1759713058365,-153.679598,0.00017808,2]
[389559387,1759713058374,-153.679598,0.00017808,2]
[389559389,1759713058383,-500.0,0.00017808,2]
[389559391,1759713058393,-153.679598,0.00017808,2]
[389559393,1759713058403,-500.0,0.00017808,2]
[389559396,1759713058413,-679.0896,0.00017808,2]
[389559397,1759713058423,-153.679598,0.00017808,2]
[389559399,1759713058433,-679.0896,0.00017808,2]
[389559401,1759713058443,-500.0,0.00017808,2]
[389559404,1759713058453,-679.0896,0.00017808,2]
[389559406,1759713058463,-500.0,0.00017808,2]
[389559408,1759713058473,-1120.6,0.00017808,2]
[389559409,1759713058482,-679.0896,0.00017808,2]
[389559412,1759713058492,-500.0,0.00017808,2]
[389559413,1759713058501,-446.61754,0.00017808,2]
[389559416,1759713058511,-446.61754,0.00017808,2]
[389559417,1759713058521,-446.61754,0.00017808,2]
[389559419,1759713058531,-863.63,0.00017808,2]
[389559421,1759713058540,-446.61754,0.00017808,2]
[389559423,1759713058549,-500.0,0.00017808,2]
[389559425,1759713058559,-500.0,0.00017808,2]
[389559427,1759713058569,-500.0,0.00017808,2]
[389559429,1759713058578,-10365.58,0.00017808,2]
[389559431,1759713058588,-569.34,0.00017808,2]
[389559433,1759713058598,-734.39,0.00017808,2]
[389559436,1759713058607,-256.862147,0.00017808,2]
[389559437,1759713058616,-256.862147,0.00017808,2]
[389559439,1759713058626,-500.0,0.00017808,2]
[389559441,1759713058635,-256.862147,0.00017808,2]
[389559443,1759713058644,-500.0,0.00017808,2]
[389559445,1759713058653,-256.862147,0.00017808,2]
[389559447,1759713058662,-500.0,0.00017808,2]
[389559449,1759713058672,-500.0,0.00017808,2]
[389559452,1759713058681,-4391.44,0.00017808,2]
[389559453,1759713058691,-1937.56,0.00017808,2]
[389559455,1759713058700,-500.0,0.00017808,2]
[389559458,1759713058710,-500.0,0.00017808,2]
[389559460,1759713058720,-151.0,0.00017808,2]
[389559462,1759713058730,-151.0,0.00017808,2]
[389559464,1759713058741,-2424.24,0.00017808,2]
[389559466,1759713058752,-500.0,0.00017808,2]
[389559468,1759713058762,-500.0,0.00017808,2]
[389559470,1759713058771,-5359.2,0.00017808,2]
[389559471,1759713058780,-151.0,0.00017808,2]
[389559473,1759713058790,-1658.6,0.00017808,2]
[389559475,1759713058800,-151.0,0.00017808,2]
[389559476,1759713058809,-151.0,0.00017808,2]
[389559478,1759713058819,-500.0,0.00017808,2]
[389559480,1759713058829,-5084.89661261,0.0001782,2]
[389559482,1759713058839,-1000.0,0.00017821,2]
[389559484,1759713058848,-1000.0,0.00017821,2]
[389559486,1759713058858,-500.0,0.00017821,2]
[389559488,1759713058867,-500.0,0.00017821,2]
[389559489,1759713058877,-501.97120374,0.00017821,2]
[389559491,1759713058887,-1000.0,0.00017821,2]
[389559493,1759713058896,-500.0,0.00017821,2]
[389559495,1759713058905,-500.0,0.00017821,2]
[389559497,1759713058915,-168.0,0.00017887,2]
[389559498,1759713058925,-396.0,0.00017938,2]
[389559500,1759713058934,-480.0,0.00017952,2]
[389559502,1759713058943,-4456.62156325,0.00017953,2]
[389559504,1759713058952,-420.0,0.00017963,2]
[389559506,1759713058962,-150.0,0.00017994,2]
[389559508,1759713058970,-150.0,0.00017994,2]
[389559509,1759713058979,-150.0,0.00017994,2]
[389559511,1759713058988,-980.0,0.00017994,2]
[389559513,1759713058997,-630.0,0.00017994,2]
[389559515,1759713059006,-2158.0,0.00017994,2]
[389559516,1759713059016,-427.313,0.00017994,2]
[389559518,1759713059027,-433.472,0.00017994,2]
[389559520,1759713059036,-160.0,0.00018043,2]
[389559522,1759713059045,-160.0,0.00018043,2]
[389559523,1759713059054,-234.13847417,0.00018043,2]
[389559525,1759713059063,-533.57524315,0.00018043,2]
[389559527,1759713059074,-293.57808533,0.00018043,2]
[389559529,1759713059086,-160.0,0.00018043,2]
[389559531,1759713059095,-160.0,0.00018043,2]
[389559532,1759713059104,-160.0,0.00018043,2]
[389559534,1759713059115,-1680.0,0.00018053,2]
[389559536,1759713059124,-171.0,0.00018056,2]
[389559538,1759713059134,-20006.03981059,0.00018072,2]
[389559540,1759713059144,-161.78556266,0.00018081,2]
[389559541,1759713059155,-1397.0,0.00018082,2]
[389559543,1759713059165,-500.0,0.00018082,2]
[389559545,1759713059174,-500.0,0.00018082,2]
[389559547,1759713059183,-943.41,0.00018082,2]
[389559564,1759713059368,-527.53,0.00018082,2]
[389559566,1759713059379,-151.0,0.00018082,2]
[389559568,1759713059388,-151.0,0.00018082,2]
[389559570,1759713059397,-228.332973,0.00018082,2]
[389559571,1759713059406,-151.0,0.00018082,2]
[389559573,1759713059416,-247.191986,0.00018082,2]
[389559575,1759713059425,-569.86991061,0.00018082,2]
[389559577,1759713059434,-151.0,0.00018082,2]
[389559579,1759713059443,-151.0,0.00018082,2]
[389559581,1759713059453,-151.0,0.00018082,2]
[389559583,1759713059462,-600.76,0.00018082,2]
[389559584,1759713059471,-723.41,0.00018082,2]
[389559586,1759713059481,-606.57,0.00018082,2]
[389559588,1759713059490,-151.0,0.00018082,2]
[389559590,1759713059499,-151.0,0.00018082,2]
[389559592,1759713059508,-875.15,0.00018082,2]
[389559594,1759713059516,-500.0,0.00018082,2]
[389559595,1759713059526,-151.0,0.00018082,2]
[389559597,1759713059536,-151.0,0.00018082,2]
[389559599,1759713059545,-500.0,0.00018082,2]
[389559601,1759713059554,-776.19,0.00018082,2]
[389559603,1759713059563,-151.0,0.00018082,2]
[389559605,1759713059573,-813.27,0.00018082,2]
[389559607,1759713059583,-276.81,0.00018082,2]
[389559609,1759713059592,-500.0,0.00018082,2]
[389559610,1759713059602,-500.0,0.00018082,2]
[389559612,1759713059613,-500.0,0.00018082,2]
[389559614,1759713059625,-185.789616,0.00018082,2]
[389559616,1759713059634,-500.0,0.00018082,2]
[389559618,1759713059643,-654.99,0.00018082,2]
[389559619,1759713059653,-151.0,0.00018082,2]
[389559621,1759713059662,-151.0,0.00018082,2]
[389559623,1759713059672,-151.0,0.00018082,2]
[389559625,1759713059681,-263.93447155,0.00018082,2]
[389559627,1759713059690,-535.6,0.00018082,2]
[389559629,1759713059699,-500.0,0.00018082,2]
[389559631,1759713059709,-500.0,0.00018082,2]
[389559632,1759713059718,-887.22,0.00018082,2]
[389559634,1759713059727,-151.0,0.00018082,2]
[389559636,1759713059737,-500.0,0.00018082,2]
[389559638,1759713059746,-151.0,0.00018082,2]
[389559640,1759713059756,-151.0,0.00018082,2]
[389559642,1759713059765,-765.64,0.00018082,2]
[389559643,1759713059774,-500.0,0.00018082,2]
[389559645,1759713059784,-587.59,0.00018082,2]
[389559647,1759713059793,-1102.28,0.00018082,2]
[389559649,1759713059806,-500.0,0.00018082,2]
[389559651,1759713059816,-517.45,0.00018082,2]
[389559653,1759713059826,-151.0,0.00018082,2]
[389559655,1759713059836,-151.0,0.00018082,2]
[389559657,1759713059845,-500.27,0.00018082,2]
[389559658,1759713059855,-151.0,0.00018082,2]
[389559661,1759713059868,-151.0,0.00018082,2]
[389559663,1759713059878,-151.0,0.00018082,2]
[389559664,1759713059887,-500.0,0.00018082,2]
[389559666,1759713059897,-1384.45,0.00018082,2]
[389559668,1759713059909,-151.0,0.00018082,2]
[389559669,1759713059920,-155.685725,0.00018082,2]
[389559671,1759713059930,-500.0,0.00018082,2]
[389559673,1759713059940,-500.0,0.00018082,2]
[389559675,1759713059949,-500.0,0.00018082,2]
[389559677,1759713059959,-500.0,0.00018082,2]
[389559679,1759713059969,-500.0,0.00018082,2]
[389559681,1759713059979,-541.64,0.00018082,2]
[389559683,1759713059989,-500.0,0.00018082,2]
[389559685,1759713059998,-500.0,0.00018082,2]
[389559686,1759713060008,-151.0,0.00018082,2]
[389559688,1759713060018,-151.0,0.00018082,2]
[389559690,1759713060027,-695.25,0.00018082,2]
[389559692,1759713060037,-459.65,0.00018082,2]
[389559694,1759713060047,-1387.11,0.00018082,2]
[389559696,1759713060057,-151.0,0.00018082,2]
[389559698,1759713060067,-984.94,0.00018082,2]
[389559700,1759713060079,-1508.02,0.00018082,2]
[389559702,1759713060090,-626.5,0.00018082,2]
[389559704,1759713060100,-846.36,0.00018082,2]
[389559705,1759713060110,-3829.66,0.00018082,2]
[389559707,1759713060123,-500.0,0.00018082,2]
[389559709,1759713060133,-838.38,0.00018082,2]
[389559711,1759713060142,-500.0,0.00018082,2]
[389559713,1759713060152,-7271.63,0.00018082,2]
[389559715,1759713060164,-868.51,0.00018082,2]
[389559717,1759713060174,-151.0,0.00018082,2]
[389559719,1759713060184,-585.61415,0.00018082,2]
[389559721,1759713060194,-500.0,0.00018082,2]
[389559723,1759713060204,-585.61415,0.00018082,2]
[389559725,1759713060213,-585.61415,0.00018082,2]
[389559727,1759713060223,-585.614157,0.00018082,2]
[389559729,1759713060233,-629.68274573,0.00018082,2]
[389559731,1759713060243,-623.23,0.00018082,2]
[389559732,1759713060252,-10604.76,0.00018082,2]
[389559734,1759713060262,-1306.95,0.00018082,2]
[389559736,1759713060271,-1022.02,0.00018082,2]
[389559738,1759713060282,-500.0,0.00018082,2]
[389559740,1759713060292,-1668.52,0.00018082,2]
[389559742,1759713060301,-2980.25,0.00018082,2]
[389559744,1759713060311,-1326.38,0.00018082,2]
[389559746,1759713060320,-1794.78,0.00018082,2]
[389559748,1759713060330,-500.0,0.00018082,2]
[389559749,1759713060341,-1089.97,0.00018082,2]
[389559751,1759713060351,-500.0,0.00018082,2]
[389559753,1759713060360,-3319.91,0.00018082,2]
[389559755,1759713060369,-637.43,0.00018082,2]
[389559757,1759713060379,-626.33,0.00018082,2]
[389559759,1759713060388,-500.0,0.00018082,2]
[389559761,1759713060398,-3422.7,0.00018082,2]
[389559763,1759713060408,-1166.32,0.00018082,2]
[389559765,1759713060418,-500.0,0.00018082,2]
[389559766,1759713060428,-4273.81,0.00018082,2]
[389559768,1759713060437,-500.0,0.00018082,2]
[389559770,1759713060447,-151.0,0.00018082,2]
[389559772,1759713060457,-500.0,0.00018082,2]
[389559774,1759713060466,-1431.63,0.00018082,2]
[389559776,1759713060475,-500.0,0.00018082,2]
[389559778,1759713060484,-1125.66,0.00018082,2]
[389559780,1759713060494,-500.0,0.00018082,2]
[389559782,1759713060503,-151.0,0.00018082,2]
[389559783,1759713060514,-985.35,0.00018082,2]
[389559785,1759713060525,-500.0,0.00018082,2]
[389559787,1759713060534,-1514.11,0.00018082,2]
[389559789,1759713060544,-999.19,0.00018082,2]
[389559791,1759713060555,-151.0,0.00018082,2]
[389559793,1759713060565,-500.0,0.00018082,2]
[389559795,1759713060575,-280.020318,0.00018082,2]
[389559797,1759713060584,-151.0,0.00018082,2]
[389559799,1759713060594,-280.020318,0.00018082,2]
[389559801,1759713060604,-151.0,0.00018082,2]
[389559803,1759713060614,-723.33,0.00018082,2]
[389559804,1759713060624,-151.0,0.00018082,2]
[389559807,1759713060634,-280.020318,0.00018082,2]
[389559808,1759713060645,-2023.81,0.00018082,2]
[389559810,1759713060656,-151.0,0.00018082,2]
[389559812,1759713060666,-280.020314,0.00018082,2]
[389559814,1759713060675,-151.0,0.00018082,2]
[389559816,1759713060685,-500.0,0.00018082,2]
[389559818,1759713060695,-151.0,0.00018082,2]
[389559820,1759713060705,-500.0,0.00018082,2]
[389559822,1759713060715,-151.0,0.00018082,2]
[389559824,1759713060724,-906.92,0.00018082,2]
[389559826,1759713060733,-500.0,0.00018082,2]
[389559828,1759713060743,-151.0,0.00018082,2]
[389559830,1759713060753,-500.0,0.00018082,2]
[389559832,1759713060764,-151.0,0.00018082,2]
[389559834,1759713060773,-327.38402587,0.00018082,2]
[389559836,1759713060783,-4035.12,0.00018082,2]
[389559837,1759713060793,-151.0,0.00018082,2]
[389559839,1759713060803,-500.0,0.00018082,2]
[389559841,1759713060813,-295.146811,0.00018082,2]
[389559843,1759713060823,-295.146811,0.00018082,2]
[389559845,1759713060832,-500.0,0.00018082,2]
[389559847,1759713060842,-295.146811,0.00018082,2]
[389559849,1759713060852,-295.146814,0.00018082,2]
[389559851,1759713060861,-500.0,0.00018082,2]
[389559853,1759713060871,-500.0,0.00018082,2]
[389559855,1759713060879,-500.0,0.00018082,2]
[389559857,1759713060889,-581.71,0.00018082,2]
[389559859,1759713060899,-645.97,0.00018082,2]
[389559860,1759713060910,-151.0,0.00018082,2]
[389559862,1759713060920,-151.0,0.00018082,2]
[389559864,1759713060930,-271.671131,0.00018082,2]